[Event "Titled Tuesday Blitz March 08 Early 2022"]
[White "Mitusov, Semen"]
[Black "Mirzanurov, Bulat"]
[WhiteFideId "14151049"]
[BlackFideId "4184521"]
[WhiteElo "2265"]
[BlackElo "2116"]
[Result "1-0"]
[Round "01"]
[TimeControl "180+1"]
[Date "2022.03.09"]
[WhiteClock "0:00:57"]
[BlackClock "0:00:01"]

1. e4 {[%clk 0:02:44]}  c5 {[%clk 0:02:58]} 2. c3 {[%clk 0:02:44]}  Nf6 {[%clk 0:02:57]} 3. e5 {[%clk 0:02:44]}  Nd5 {[%clk 0:02:56]} 4. d4 {[%clk 0:02:44]}  cxd4 {[%clk 0:02:55]} 5. Nf3 {[%clk 0:02:44]}  d6 {[%clk 0:02:52]} 6. cxd4 {[%clk 0:02:43]}  Nc6 {[%clk 0:02:52]} 7. Bc4 {[%clk 0:02:42]}  Nb6 {[%clk 0:02:35]} 8. Bb3 {[%clk 0:02:41]}  dxe5 {[%clk 0:02:28]} 9. d5 {[%clk 0:02:41]}  Nd4 {[%clk 0:01:59]} 10. Nxd4 {[%clk 0:02:21]}  exd4 {[%clk 0:01:56]} 11. Qxd4 {[%clk 0:02:22]}  e6 {[%clk 0:01:54]} 12. Nc3 {[%clk 0:02:15]}  exd5 {[%clk 0:01:50]} 13. O-O {[%clk 0:01:46]}  Be6 {[%clk 0:01:47]} 14. Re1 {[%clk 0:01:46]}  Be7 {[%clk 0:01:20]} 15. Qxg7 {[%clk 0:01:42]}  Bf6 {[%clk 0:01:18]} 16. Qg3 {[%clk 0:01:37]}  Qd7 {[%clk 0:01:07]} 17. Bf4 {[%clk 0:01:35]}  O-O-O {[%clk 0:01:00]} 18. Rac1 {[%clk 0:01:33]}  Nc4 {[%clk 0:00:43]} 19. Nxd5 {[%clk 0:01:32]}  Bxd5 {[%clk 0:00:32]} 20. Bxc4 {[%clk 0:01:32]}  Bc6 {[%clk 0:00:32]} 21. Bb5 {[%clk 0:01:29]}  Rdg8 {[%clk 0:00:27]} 22. Qf3 {[%clk 0:01:06]}  Kd8 {[%clk 0:00:12]} 23. Bxc6 {[%clk 0:01:04]}  bxc6 {[%clk 0:00:05]} 24. Rcd1 {[%clk 0:01:00]}  Bd4 {[%clk 0:00:05]} 25. Rxd4 {[%clk 0:01:00]}  Qxd4 {[%clk 0:00:03]} 26. Rd1 {[%clk 0:01:00]}  Qxd1+ {[%clk 0:00:03]} 27. Qxd1+ {[%clk 0:01:01]}  Kc8 {[%clk 0:00:03]} 28. Be5 {[%clk 0:01:00]}  Rd8 {[%clk 0:00:01]} 29. Qg4+ {[%clk 0:01:00]}  Kb7 {[%clk 0:00:01]} 30. Bxh8 {[%clk 0:00:59]}  Rxh8 {[%clk 0:00:02]} 31. Qd7+ {[%clk 0:00:58]}  Kb6 {[%clk 0:00:02]} 32. Qd4+ {[%clk 0:00:58]}  Ka5 {[%clk 0:00:02]} 33. Qxh8 {[%clk 0:00:59]}  Ka6 {[%clk 0:00:01]} 34. Qb8 {[%clk 0:00:58]}  Ka5 {[%clk 0:00:01]} 35. b3 {[%clk 0:00:57]} 1-0


[Site "https://www.chess.com"]

[Event "Titled Tuesday Blitz March 08 Early 2022"]
[White "Mkrtchyan, Mariam"]
[Black "Babazada, Khazar"]
[WhiteFideId "13310828"]
[BlackFideId "13413554"]
[WhiteElo "1984"]
[BlackElo "2418"]
[Result "1/2-1/2"]
[Round "01"]
[TimeControl "180+1"]
[Date "2022.03.08"]
[WhiteClock "0:01:11"]
[BlackClock "0:00:17"]

1. d4 {[%clk 0:03:00]}  Nf6 {[%clk 0:02:57]} 2. Nf3 {[%clk 0:03:00]}  e6 {[%clk 0:02:58]} 3. g3 {[%clk 0:03:01]}  b5 {[%clk 0:02:54]} 4. Bg2 {[%clk 0:03:01]}  Bb7 {[%clk 0:02:54]} 5. O-O {[%clk 0:03:01]}  Be7 {[%clk 0:02:51]} 6. c3 {[%clk 0:02:55]}  O-O {[%clk 0:02:51]} 7. a4 {[%clk 0:02:54]}  b4 {[%clk 0:02:47]} 8. c4 {[%clk 0:02:51]}  a5 {[%clk 0:02:44]} 9. Bf4 {[%clk 0:02:46]}  c5 {[%clk 0:02:43]} 10. Nbd2 {[%clk 0:02:45]}  cxd4 {[%clk 0:02:43]} 11. Nxd4 {[%clk 0:02:44]}  Bxg2 {[%clk 0:02:44]} 12. Kxg2 {[%clk 0:02:44]}  Qb6 {[%clk 0:02:45]} 13. N2f3 {[%clk 0:02:41]}  d6 {[%clk 0:02:40]} 14. Be3 {[%clk 0:02:36]}  Qb7 {[%clk 0:02:40]} 15. h3 {[%clk 0:02:35]}  Na6 {[%clk 0:02:33]} 16. Nb5 {[%clk 0:02:33]}  Rfd8 {[%clk 0:02:32]} 17. Qc2 {[%clk 0:02:31]}  d5 {[%clk 0:02:29]} 18. Rfd1 {[%clk 0:02:31]}  Rac8 {[%clk 0:02:28]} 19. b3 {[%clk 0:02:24]}  Bc5 {[%clk 0:02:28]} 20. Bg5 {[%clk 0:02:19]}  Qb6 {[%clk 0:02:13]} 21. Bxf6 {[%clk 0:02:13]}  gxf6 {[%clk 0:02:12]} 22. e3 {[%clk 0:02:12]}  Bf8 {[%clk 0:02:07]} 23. Nd2 {[%clk 0:02:10]}  f5 {[%clk 0:02:06]} 24. Rac1 {[%clk 0:02:08]}  Bg7 {[%clk 0:02:05]} 25. Kh2 {[%clk 0:02:03]}  Qb7 {[%clk 0:01:53]} 26. Nf1 {[%clk 0:01:55]}  h6 {[%clk 0:01:19]} 27. Qe2 {[%clk 0:01:54]}  dxc4 {[%clk 0:01:04]} 28. Rxd8+ {[%clk 0:01:49]}  Rxd8 {[%clk 0:01:04]} 29. Rxc4 {[%clk 0:01:49]}  Bf6 {[%clk 0:00:56]} 30. Nd2 {[%clk 0:01:36]}  Rd5 {[%clk 0:00:55]} 31. Nf3 {[%clk 0:01:34]}  Nc5 {[%clk 0:00:54]} 32. Qc2 {[%clk 0:01:24]}  Ne4 {[%clk 0:00:48]} 33. Rc7 {[%clk 0:01:17]}  Qb6 {[%clk 0:00:44]} 34. Rc6 {[%clk 0:01:14]}  Qb7 {[%clk 0:00:32]} 35. Rc7 {[%clk 0:01:11]}  Qb6 {[%clk 0:00:17]} 1/2-1/2


[Site "https://www.chess.com"]

[Event "Titled Tuesday Blitz March 08 Early 2022"]
[White "Moroni, Luca Jr"]
[Black "Kuzmin, Roman"]
[WhiteFideId "865834"]
[BlackFideId "44134932"]
[WhiteElo "2573"]
[BlackElo "1978"]
[Result "1-0"]
[Round "01"]
[TimeControl "180+1"]
[Date "2022.03.08"]
[WhiteClock "0:01:14"]
[BlackClock "0:00:45"]

1. d4 {[%clk 0:03:00]}  d5 {[%clk 0:02:58]} 2. Bf4 {[%clk 0:02:55]}  Nf6 {[%clk 0:02:58]} 3. e3 {[%clk 0:02:56]}  c5 {[%clk 0:02:58]} 4. dxc5 {[%clk 0:02:57]}  Nc6 {[%clk 0:02:58]} 5. Bb5 {[%clk 0:02:55]}  e6 {[%clk 0:02:29]} 6. b4 {[%clk 0:02:55]}  Be7 {[%clk 0:02:23]} 7. Nf3 {[%clk 0:02:54]}  O-O {[%clk 0:02:17]} 8. c3 {[%clk 0:02:54]}  Ne4 {[%clk 0:02:14]} 9. Qb3 {[%clk 0:02:43]}  Bf6 {[%clk 0:02:00]} 10. a4 {[%clk 0:02:42]}  a6 {[%clk 0:01:47]} 11. Be2 {[%clk 0:02:34]}  a5 {[%clk 0:01:23]} 12. Ra3 {[%clk 0:02:25]}  Nxc3 {[%clk 0:01:16]} 13. b5 {[%clk 0:02:19]}  Nxb1 {[%clk 0:01:10]} 14. Qxb1 {[%clk 0:02:19]}  Nb4 {[%clk 0:01:10]} 15. O-O {[%clk 0:02:16]}  Be7 {[%clk 0:01:09]} 16. Rc3 {[%clk 0:02:14]}  f6 {[%clk 0:01:08]} 17. Rd1 {[%clk 0:02:09]}  e5 {[%clk 0:01:08]} 18. Bg3 {[%clk 0:02:07]}  Qe8 {[%clk 0:01:08]} 19. c6 {[%clk 0:02:02]}  bxc6 {[%clk 0:01:07]} 20. bxc6 {[%clk 0:02:02]}  Ba6 {[%clk 0:01:06]} 21. Bb5 {[%clk 0:02:00]}  Qb8 {[%clk 0:01:03]} 22. c7 {[%clk 0:01:56]}  Qb7 {[%clk 0:01:01]} 23. Bd7 {[%clk 0:01:47]}  Qa7 {[%clk 0:00:57]} 24. Be6+ {[%clk 0:01:40]}  Kh8 {[%clk 0:00:57]} 25. Bxd5 {[%clk 0:01:41]}  Nxd5 {[%clk 0:00:57]} 26. Rxd5 {[%clk 0:01:42]}  Bb4 {[%clk 0:00:55]} 27. Rc1 {[%clk 0:01:35]}  Rac8 {[%clk 0:00:55]} 28. Bxe5 {[%clk 0:01:15]}  fxe5 {[%clk 0:00:54]} 29. Ng5 {[%clk 0:01:15]}  g6 {[%clk 0:00:49]} 30. Rd7 {[%clk 0:01:14]}  Qb6 {[%clk 0:00:44]} 31. Rxh7+ {[%clk 0:01:14]}  Kg8 {[%clk 0:00:45]} 32. Qb3+ {[%clk 0:01:14]} 1-0


[Site "https://www.chess.com"]

[Event "Titled Tuesday Blitz March 08 Early 2022"]
[White "Murzin, Volodar"]
[Black "Derraugh, Geordie"]
[WhiteFideId "44155573"]
[BlackFideId "2603950"]
[WhiteElo "2585"]
[BlackElo "2116"]
[Result "1-0"]
[Round "01"]
[TimeControl "180+1"]
[Date "2022.03.09"]
[WhiteClock "0:00:04"]
[BlackClock "0:00:18"]

1. e4 {[%clk 0:02:58]}  e5 {[%clk 0:02:57]} 2. Nf3 {[%clk 0:02:55]}  Nc6 {[%clk 0:02:58]} 3. Bb5 {[%clk 0:02:55]}  a6 {[%clk 0:02:57]} 4. Ba4 {[%clk 0:02:55]}  Nf6 {[%clk 0:02:57]} 5. O-O {[%clk 0:02:54]}  Be7 {[%clk 0:02:57]} 6. Re1 {[%clk 0:02:53]}  b5 {[%clk 0:02:57]} 7. Bb3 {[%clk 0:02:53]}  O-O {[%clk 0:02:57]} 8. a4 {[%clk 0:02:54]}  b4 {[%clk 0:02:56]} 9. d4 {[%clk 0:02:47]}  d6 {[%clk 0:02:37]} 10. dxe5 {[%clk 0:02:24]}  Nxe5 {[%clk 0:02:32]} 11. Bf4 {[%clk 0:02:00]}  Ng6 {[%clk 0:02:25]} 12. Bg3 {[%clk 0:01:56]}  Bb7 {[%clk 0:02:24]} 13. Nbd2 {[%clk 0:01:52]}  Nh5 {[%clk 0:02:20]} 14. Bd5 {[%clk 0:01:48]}  Bxd5 {[%clk 0:02:14]} 15. exd5 {[%clk 0:01:49]}  Bf6 {[%clk 0:02:14]} 16. Nc4 {[%clk 0:01:44]}  Qd7 {[%clk 0:02:02]} 17. Qd3 {[%clk 0:01:14]}  Nhf4 {[%clk 0:01:48]} 18. Qd2 {[%clk 0:01:06]}  Qg4 {[%clk 0:01:46]} 19. Ne3 {[%clk 0:01:02]}  Qh5 {[%clk 0:01:42]} 20. Bxf4 {[%clk 0:00:41]}  Nxf4 {[%clk 0:01:41]} 21. Qxb4 {[%clk 0:00:40]}  Nh3+ {[%clk 0:01:38]} 22. Kf1 {[%clk 0:00:37]}  Rab8 {[%clk 0:01:36]} 23. Qg4 {[%clk 0:00:34]}  Qxg4 {[%clk 0:01:16]} 24. Nxg4 {[%clk 0:00:32]}  Nf4 {[%clk 0:01:17]} 25. Nxf6+ {[%clk 0:00:21]}  gxf6 {[%clk 0:01:17]} 26. b3 {[%clk 0:00:07]}  Nxd5 {[%clk 0:01:18]} 27. Nd4 {[%clk 0:00:07]}  Rfe8 {[%clk 0:01:07]} 28. Nc6 {[%clk 0:00:05]}  Ra8 {[%clk 0:01:02]} 29. Rad1 {[%clk 0:00:04]}  Nf4 {[%clk 0:00:58]} 30. g3 {[%clk 0:00:04]}  Ng6 {[%clk 0:00:58]} 31. Nb4 {[%clk 0:00:03]}  Kg7 {[%clk 0:00:16]} 32. Rxe8 {[%clk 0:00:02]}  Rxe8 {[%clk 0:00:15]} 33. Nxa6 {[%clk 0:00:03]}  Ne5 {[%clk 0:00:13]} 34. Nxc7 {[%clk 0:00:02]}  Rc8 {[%clk 0:00:13]} 35. Nb5 {[%clk 0:00:03]}  Rxc2 {[%clk 0:00:13]} 36. Nxd6 {[%clk 0:00:03]}  Ng4 {[%clk 0:00:14]} 37. Ne4 {[%clk 0:00:03]}  Nxh2+ {[%clk 0:00:14]} 38. Kg2 {[%clk 0:00:03]}  Ng4 {[%clk 0:00:14]} 39. Rd2 {[%clk 0:00:03]}  Rc7 {[%clk 0:00:13]} 40. Rb2 {[%clk 0:00:03]}  Rb7 {[%clk 0:00:14]} 41. Nc5 {[%clk 0:00:03]}  Rb8 {[%clk 0:00:13]} 42. b4 {[%clk 0:00:03]}  Ne5 {[%clk 0:00:14]} 43. b5 {[%clk 0:00:04]}  Nc4 {[%clk 0:00:14]} 44. Rb3 {[%clk 0:00:04]}  Na5 {[%clk 0:00:15]} 45. Rb4 {[%clk 0:00:04]}  Rc8 {[%clk 0:00:16]} 46. Nb3 {[%clk 0:00:02]}  Rc2 {[%clk 0:00:16]} 47. Nxa5 {[%clk 0:00:03]}  Ra2 {[%clk 0:00:16]} 48. b6 {[%clk 0:00:03]}  Rc2 {[%clk 0:00:16]} 49. b7 {[%clk 0:00:03]}  Rc4 {[%clk 0:00:17]} 50. b8=Q {[%clk 0:00:03]}  Rxb4 {[%clk 0:00:18]} 51. Qxb4 {[%clk 0:00:04]} 1-0


[Site "https://www.chess.com"]

[Event "Titled Tuesday Blitz March 08 Early 2022"]
[White "Musovic, Armin"]
[Black "San, Thit Lwin"]
[WhiteFideId "939935"]
[BlackFideId "13001272"]
[WhiteElo "2283"]
[BlackElo "2232"]
[Result "1-0"]
[Round "01"]
[TimeControl "180+1"]
[Date "2022.03.09"]
[WhiteClock "0:00:49"]
[BlackClock "0:00:03"]

1. a3 {[%clk 0:02:59]}  Nf6 {[%clk 0:03:00]} 2. Nc3 {[%clk 0:03:00]}  d5 {[%clk 0:03:00]} 3. d3 {[%clk 0:03:00]}  e5 {[%clk 0:02:59]} 4. Bg5 {[%clk 0:03:01]}  Be7 {[%clk 0:02:59]} 5. e4 {[%clk 0:03:01]}  c6 {[%clk 0:02:55]} 6. f3 {[%clk 0:02:59]}  O-O {[%clk 0:02:54]} 7. Nge2 {[%clk 0:02:57]}  d4 {[%clk 0:02:47]} 8. Nb1 {[%clk 0:02:56]}  Nh5 {[%clk 0:02:46]} 9. Bxe7 {[%clk 0:02:55]}  Qxe7 {[%clk 0:02:46]} 10. g3 {[%clk 0:02:56]}  f5 {[%clk 0:02:38]} 11. Bg2 {[%clk 0:02:55]}  fxe4 {[%clk 0:02:33]} 12. dxe4 {[%clk 0:02:53]}  Be6 {[%clk 0:02:29]} 13. Nd2 {[%clk 0:02:40]}  c5 {[%clk 0:02:29]} 14. O-O {[%clk 0:02:38]}  Nc6 {[%clk 0:02:29]} 15. f4 {[%clk 0:02:36]}  exf4 {[%clk 0:02:12]} 16. Nxf4 {[%clk 0:02:32]}  Nf6 {[%clk 0:02:04]} 17. h3 {[%clk 0:02:20]}  Ne5 {[%clk 0:01:58]} 18. Qe2 {[%clk 0:02:13]}  Rad8 {[%clk 0:01:37]} 19. Rae1 {[%clk 0:02:03]}  a6 {[%clk 0:01:33]} 20. Nf3 {[%clk 0:02:04]}  Nfd7 {[%clk 0:01:19]} 21. Nh4 {[%clk 0:01:51]}  Bc4 {[%clk 0:01:10]} 22. Nd5 {[%clk 0:01:37]}  Rxf1+ {[%clk 0:00:59]} 23. Qxf1 {[%clk 0:01:34]}  Bxf1 {[%clk 0:00:53]} 24. Nxe7+ {[%clk 0:01:33]}  Kf7 {[%clk 0:00:52]} 25. Rxf1+ {[%clk 0:01:29]}  Kxe7 {[%clk 0:00:52]} 26. Nf5+ {[%clk 0:01:30]}  Kf8 {[%clk 0:00:45]} 27. Nxd4+ {[%clk 0:01:30]}  Kg8 {[%clk 0:00:43]} 28. Nf5 {[%clk 0:01:26]}  Rf8 {[%clk 0:00:30]} 29. Ne7+ {[%clk 0:01:17]}  Kh8 {[%clk 0:00:30]} 30. Rxf8+ {[%clk 0:01:17]}  Nxf8 {[%clk 0:00:28]} 31. b3 {[%clk 0:01:15]}  Ne6 {[%clk 0:00:27]} 32. Nf5 {[%clk 0:01:08]}  g6 {[%clk 0:00:24]} 33. Nd6 {[%clk 0:01:09]}  b5 {[%clk 0:00:22]} 34. Bf1 {[%clk 0:01:07]}  Nd4 {[%clk 0:00:21]} 35. a4 {[%clk 0:01:08]}  Nxc2 {[%clk 0:00:13]} 36. axb5 {[%clk 0:01:07]}  axb5 {[%clk 0:00:14]} 37. Bxb5 {[%clk 0:01:03]}  Nd4 {[%clk 0:00:13]} 38. Bc4 {[%clk 0:00:58]}  Kg7 {[%clk 0:00:13]} 39. Nb7 {[%clk 0:00:58]}  Nxc4 {[%clk 0:00:12]} 40. bxc4 {[%clk 0:00:57]}  Ne6 {[%clk 0:00:12]} 41. e5 {[%clk 0:00:54]}  Kf7 {[%clk 0:00:12]} 42. Kg2 {[%clk 0:00:54]}  Ke7 {[%clk 0:00:12]} 43. h4 {[%clk 0:00:54]}  Nd4 {[%clk 0:00:12]} 44. Nxc5 {[%clk 0:00:53]}  Nc6 {[%clk 0:00:11]} 45. Nd3 {[%clk 0:00:53]}  Ke6 {[%clk 0:00:12]} 46. Kf3 {[%clk 0:00:53]}  Na5 {[%clk 0:00:11]} 47. c5 {[%clk 0:00:51]}  Nc6 {[%clk 0:00:10]} 48. Ke4 {[%clk 0:00:51]}  Ne7 {[%clk 0:00:08]} 49. Nf4+ {[%clk 0:00:51]}  Kd7 {[%clk 0:00:08]} 50. g4 {[%clk 0:00:50]}  Kc6 {[%clk 0:00:06]} 51. Ne6 {[%clk 0:00:49]}  Kd7 {[%clk 0:00:05]} 52. Nf8+ {[%clk 0:00:49]}  Kc6 {[%clk 0:00:05]} 53. Nxh7 {[%clk 0:00:50]}  Kxc5 {[%clk 0:00:06]} 54. Nf8 {[%clk 0:00:50]}  Kc6 {[%clk 0:00:06]} 55. h5 {[%clk 0:00:48]}  gxh5 {[%clk 0:00:05]} 56. gxh5 {[%clk 0:00:49]}  Ng8 {[%clk 0:00:05]} 57. Kf5 {[%clk 0:00:48]}  Kc7 {[%clk 0:00:05]} 58. Ke6 {[%clk 0:00:47]}  Kd8 {[%clk 0:00:06]} 59. Kf7 {[%clk 0:00:47]}  Nh6+ {[%clk 0:00:06]} 60. Kg6 {[%clk 0:00:47]}  Ng8 {[%clk 0:00:06]} 61. Ne6+ {[%clk 0:00:47]}  Ke7 {[%clk 0:00:06]} 62. Ng5 {[%clk 0:00:48]}  Kd7 {[%clk 0:00:05]} 63. h6 {[%clk 0:00:49]}  Ne7+ {[%clk 0:00:03]} 64. Kf7 {[%clk 0:00:49]}  Nf5 {[%clk 0:00:02]} 65. h7 {[%clk 0:00:49]}  Nh6+ {[%clk 0:00:03]} 66. Kf8 {[%clk 0:00:49]} 1-0


[Site "https://www.chess.com"]

[Event "Titled Tuesday Blitz March 08 Early 2022"]
[White "Necula, Iulian"]
[Black "Kushko, Dmitriy"]
[WhiteFideId "1232380"]
[BlackFideId "14162261"]
[WhiteElo "1776"]
[BlackElo "2225"]
[Result "0-1"]
[Round "01"]
[TimeControl "180+1"]
[Date "2022.03.09"]
[WhiteClock "0:00:26"]
[BlackClock "0:00:24"]

1. b4 {[%clk 0:03:00]}  e5 {[%clk 0:02:55]} 2. Bb2 {[%clk 0:03:00]}  d6 {[%clk 0:02:55]} 3. Nf3 {[%clk 0:02:59]}  Nd7 {[%clk 0:02:52]} 4. c4 {[%clk 0:02:58]}  g6 {[%clk 0:02:51]} 5. Nc3 {[%clk 0:02:55]}  Bg7 {[%clk 0:02:51]} 6. e3 {[%clk 0:02:55]}  Ngf6 {[%clk 0:02:43]} 7. d4 {[%clk 0:02:52]}  O-O {[%clk 0:02:39]} 8. d5 {[%clk 0:02:40]}  Qe7 {[%clk 0:02:06]} 9. Be2 {[%clk 0:02:38]}  e4 {[%clk 0:01:56]} 10. Nd4 {[%clk 0:02:37]}  h5 {[%clk 0:01:53]} 11. h3 {[%clk 0:02:34]}  h4 {[%clk 0:01:44]} 12. Qd2 {[%clk 0:02:28]}  Ne5 {[%clk 0:01:40]} 13. O-O-O {[%clk 0:01:32]}  c6 {[%clk 0:01:37]} 14. f4 {[%clk 0:01:28]}  exf3 {[%clk 0:01:27]} 15. Bxf3 {[%clk 0:01:28]}  Nxf3 {[%clk 0:01:23]} 16. gxf3 {[%clk 0:01:25]}  cxd5 {[%clk 0:01:22]} 17. Nxd5 {[%clk 0:01:20]}  Nxd5 {[%clk 0:01:21]} 18. cxd5 {[%clk 0:01:21]}  Bd7 {[%clk 0:01:20]} 19. Kb1 {[%clk 0:01:20]}  Rfc8 {[%clk 0:01:11]} 20. Rc1 {[%clk 0:01:19]}  Rxc1+ {[%clk 0:01:10]} 21. Rxc1 {[%clk 0:01:18]}  Bxh3 {[%clk 0:01:09]} 22. Re1 {[%clk 0:01:02]}  Bd7 {[%clk 0:01:07]} 23. e4 {[%clk 0:01:02]}  h3 {[%clk 0:01:04]} 24. f4 {[%clk 0:00:47]}  Re8 {[%clk 0:01:00]} 25. Nf3 {[%clk 0:00:46]}  Bxb2 {[%clk 0:00:57]} 26. Kxb2 {[%clk 0:00:47]}  Qf6+ {[%clk 0:00:48]} 27. e5 {[%clk 0:00:46]}  dxe5 {[%clk 0:00:46]} 28. Nxe5 {[%clk 0:00:47]}  Bf5 {[%clk 0:00:36]} 29. a4 {[%clk 0:00:43]}  Rd8 {[%clk 0:00:35]} 30. Rd1 {[%clk 0:00:37]}  Rd6 {[%clk 0:00:29]} 31. Ka3 {[%clk 0:00:36]}  Be4 {[%clk 0:00:27]} 32. Qc3 {[%clk 0:00:32]}  Rxd5 {[%clk 0:00:25]} 33. Qc8+ {[%clk 0:00:32]}  Kg7 {[%clk 0:00:24]} 34. Rxd5 {[%clk 0:00:32]}  Bxd5 {[%clk 0:00:25]} 35. Nd7 {[%clk 0:00:26]}  Qa1# {[%clk 0:00:24]} 0-1


[Site "https://www.chess.com"]

[Event "Titled Tuesday Blitz March 08 Early 2022"]
[White "Neiksans, Arturs"]
[Black "Mikhnenko, Alexander"]
[WhiteFideId "11601388"]
[BlackFideId "34143014"]
[WhiteElo "2447"]
[BlackElo "2184"]
[Result "1-0"]
[Round "01"]
[TimeControl "180+1"]
[Date "2022.03.09"]
[WhiteClock "0:00:16"]
[BlackClock "0:00:07"]

1. e4 {[%clk 0:02:20]}  c5 {[%clk 0:02:57]} 2. Nf3 {[%clk 0:02:20]}  e6 {[%clk 0:02:57]} 3. g3 {[%clk 0:02:17]}  d5 {[%clk 0:02:56]} 4. exd5 {[%clk 0:02:18]}  exd5 {[%clk 0:02:57]} 5. d4 {[%clk 0:02:18]}  Nf6 {[%clk 0:02:57]} 6. Bg2 {[%clk 0:02:18]}  Nc6 {[%clk 0:02:57]} 7. O-O {[%clk 0:02:18]}  Be7 {[%clk 0:02:57]} 8. dxc5 {[%clk 0:02:16]}  Bxc5 {[%clk 0:02:58]} 9. a3 {[%clk 0:02:16]}  O-O {[%clk 0:02:57]} 10. b4 {[%clk 0:02:16]}  Bb6 {[%clk 0:02:58]} 11. Nc3 {[%clk 0:02:09]}  Bg4 {[%clk 0:02:53]} 12. h3 {[%clk 0:02:04]}  Bh5 {[%clk 0:02:51]} 13. Bg5 {[%clk 0:02:02]}  Bd4 {[%clk 0:02:19]} 14. Qd2 {[%clk 0:01:43]}  Bxc3 {[%clk 0:02:01]} 15. Qxc3 {[%clk 0:01:43]}  Ne4 {[%clk 0:01:59]} 16. Qe3 {[%clk 0:01:05]}  f6 {[%clk 0:01:54]} 17. g4 {[%clk 0:01:03]}  fxg5 {[%clk 0:01:48]} 18. gxh5 {[%clk 0:01:02]}  Qf6 {[%clk 0:01:36]} 19. c4 {[%clk 0:01:01]}  Rae8 {[%clk 0:01:28]} 20. cxd5 {[%clk 0:01:00]}  Nb8 {[%clk 0:00:50]} 21. Qxa7 {[%clk 0:00:55]}  Nc3 {[%clk 0:00:35]} 22. Rfe1 {[%clk 0:00:48]}  Ne2+ {[%clk 0:00:33]} 23. Kh1 {[%clk 0:00:48]}  Nf4 {[%clk 0:00:33]} 24. Qd4 {[%clk 0:00:46]}  Qf5 {[%clk 0:00:29]} 25. Rxe8 {[%clk 0:00:43]}  Rxe8 {[%clk 0:00:29]} 26. Re1 {[%clk 0:00:43]}  Rxe1+ {[%clk 0:00:24]} 27. Nxe1 {[%clk 0:00:43]}  Nxh3 {[%clk 0:00:24]} 28. Bxh3 {[%clk 0:00:39]}  Qxh3+ {[%clk 0:00:24]} 29. Kg1 {[%clk 0:00:39]}  Nd7 {[%clk 0:00:25]} 30. Ng2 {[%clk 0:00:36]}  Qxh5 {[%clk 0:00:20]} 31. Ne3 {[%clk 0:00:36]}  Qe8 {[%clk 0:00:17]} 32. d6 {[%clk 0:00:36]}  Qe5 {[%clk 0:00:16]} 33. Qd3 {[%clk 0:00:33]}  g6 {[%clk 0:00:14]} 34. Qc4+ {[%clk 0:00:32]}  Kg7 {[%clk 0:00:15]} 35. Qc7 {[%clk 0:00:32]}  Qe6 {[%clk 0:00:13]} 36. a4 {[%clk 0:00:33]}  Kf6 {[%clk 0:00:13]} 37. a5 {[%clk 0:00:32]}  Ne5 {[%clk 0:00:12]} 38. Qxb7 {[%clk 0:00:30]}  Qxd6 {[%clk 0:00:12]} 39. a6 {[%clk 0:00:29]}  g4 {[%clk 0:00:11]} 40. Nd5+ {[%clk 0:00:19]}  Kg5 {[%clk 0:00:08]} 41. Qe7+ {[%clk 0:00:16]}  Qxe7 {[%clk 0:00:08]} 42. Nxe7 {[%clk 0:00:16]}  Kf4 {[%clk 0:00:07]} 43. a7 {[%clk 0:00:16]} 1-0


[Site "https://www.chess.com"]

[Event "Titled Tuesday Blitz March 08 Early 2022"]
[White "Omariev, Maksim"]
[Black "Costachi, Mihnea"]
[WhiteFideId "4193423"]
[BlackFideId "1217518"]
[WhiteElo "2423"]
[BlackElo "2464"]
[Result "0-1"]
[Round "01"]
[TimeControl "180+1"]
[Date "2022.03.09"]
[WhiteClock "0:00:03"]
[BlackClock "0:00:56"]

1. g4 {[%clk 0:02:22]}  e5 {[%clk 0:02:55]} 2. Bg2 {[%clk 0:02:21]}  h5 {[%clk 0:02:54]} 3. gxh5 {[%clk 0:02:13]}  Rxh5 {[%clk 0:02:53]} 4. d3 {[%clk 0:02:08]}  d5 {[%clk 0:02:51]} 5. Nc3 {[%clk 0:02:08]}  c6 {[%clk 0:02:50]} 6. e4 {[%clk 0:02:07]}  Nf6 {[%clk 0:02:45]} 7. exd5 {[%clk 0:02:05]}  Bg4 {[%clk 0:02:40]} 8. f3 {[%clk 0:01:55]}  Bf5 {[%clk 0:02:35]} 9. dxc6 {[%clk 0:01:52]}  Nxc6 {[%clk 0:02:36]} 10. Nge2 {[%clk 0:01:53]}  Bc5 {[%clk 0:02:33]} 11. Ng3 {[%clk 0:01:52]}  Qd4 {[%clk 0:02:21]} 12. Qe2 {[%clk 0:01:45]}  Qh4 {[%clk 0:02:14]} 13. Be3 {[%clk 0:01:16]}  Bxe3 {[%clk 0:02:12]} 14. Qxe3 {[%clk 0:01:17]}  Be6 {[%clk 0:02:02]} 15. O-O-O {[%clk 0:01:12]}  Rh8 {[%clk 0:02:02]} 16. Nb5 {[%clk 0:01:05]}  Nd5 {[%clk 0:01:53]} 17. Qc5 {[%clk 0:00:57]}  Qe7 {[%clk 0:01:47]} 18. Nd6+ {[%clk 0:00:45]}  Kf8 {[%clk 0:01:46]} 19. Nxb7 {[%clk 0:00:44]}  Rc8 {[%clk 0:01:28]} 20. Qxe7+ {[%clk 0:00:19]}  Kxe7 {[%clk 0:01:29]} 21. Ne4 {[%clk 0:00:18]}  Nd4 {[%clk 0:01:23]} 22. c3 {[%clk 0:00:14]}  Nf4 {[%clk 0:01:18]} 23. Rd2 {[%clk 0:00:09]}  Bxa2 {[%clk 0:01:18]} 24. Nbc5 {[%clk 0:00:04]}  Nb3+ {[%clk 0:01:12]} 25. Nxb3 {[%clk 0:00:04]}  Bxb3 {[%clk 0:01:13]} 26. h4 {[%clk 0:00:04]}  Rcd8 {[%clk 0:01:12]} 27. Bf1 {[%clk 0:00:02]}  Rh6 {[%clk 0:01:07]} 28. Nc5 {[%clk 0:00:03]}  Bd5 {[%clk 0:01:06]} 29. Rg1 {[%clk 0:00:02]}  g6 {[%clk 0:01:01]} 30. Rg5 {[%clk 0:00:01]}  f6 {[%clk 0:01:00]} 31. Rg3 {[%clk 0:00:02]}  Rxh4 {[%clk 0:00:59]} 32. Kc2 {[%clk 0:00:03]}  g5 {[%clk 0:00:57]} 33. Be2 {[%clk 0:00:03]}  Rh2 {[%clk 0:00:56]} 0-1


[Site "https://www.chess.com"]